[Event "12th National Schools-ch 2024"]
[Site "Gyan Bhawan Patna"]
[Date "2024.02.09"]
[Round "8.10"]
[White "Shadhursshaan R"]
[Black "Aniket Ranjan"]
[Result "1/2-1/2"]
[ECO "E01"]
[WhiteElo "2058"]
[BlackElo "1586"]
[Annotator "NA RC"]
[PlyCount "65"]
[EventDate "2024.02.05"]
[EventCountry "IND"]
[SourceTitle "playchess.com"]
[Source "ChessBase"]
[SourceQuality "1"]
[TimeControl "5400+30"]

1. d4 {[%emt 0:00:07]} Nf6 {[%emt 0:00:25]} 2. c4 {[%emt 0:00:02]} e6 {[%emt 0:00:21]} 3. Nf3 {[%emt 0:00:03]} c6 {[%emt 0:01:47]} 4. g3 {[%emt 0:00:36]} d5 {[%emt 0:02:30]} 5. Bg2 {[%emt 0:00:02]} Bd6 {[%emt 0:03:39]} 6. O-O {[%emt 0:00:04]} O-O {[%emt 0:00:17]} 7. Qc2 {[%emt 0:00:07]} Nbd7 {[%emt 0:00:26]} 8. Nbd2 {[%emt 0:00:04]} e5 {[%emt 0:00:32]} 9. cxd5 {[%emt 0:00:17]} cxd5 {[%emt 0:01:23]} 10. dxe5 {[%emt 0:01:39]} Nxe5 {[%emt 0:00:17]} 11. Nxe5 {[%emt 0:00:07]} Bxe5 {[%emt 0:00:15]} 12. Nf3 {[%emt 0:00:04]} Re8 {[%emt 0:02:00]} 13. Rd1 {[%emt 0:03:25]} Bg4 {[%emt 0:01:21]} 14. Nxe5 {[%emt 0:02:45]} Rxe5 {[%emt 0:00:28]} 15. Be3 {[%emt 0:00:31]} Qe7 {[%emt 0:10:45]} 16. h3 {[%emt 0:01:02]} Bf5 {[%emt 0:02:22]} 17. Qb3 {[%emt 0:02:03]} Rc8 {[%emt 0:05:14]} 18. Rac1 {[%emt 0:01:02]} Rxc1 {[%emt 0:00:31]} 19. Rxc1 {[%emt 0:00:02]} h6 {[%emt 0:00:37]} 20. Bxa7 {[%emt 0:01:08]} Rxe2 {[%emt 0:00:57]} 21. Be3 {[%emt 0:00:55]} Qe5 {[%emt 0:01:17]} 22. Bf4 {[%emt 0:38:27]} Qxb2 {[%emt 0:14:56]} 23. Qxb2 {[%emt 0:00:27]} Rxb2 {[%emt 0:00:08]} 24. Be5 {[%emt 0:00:05]} Rd2 {[%emt 0:03:33]} 25. Bc3 {[%emt 0:00:39]} Rxa2 {[%emt 0:01:59]} 26. Bxf6 {[%emt 0:00:02]} gxf6 {[%emt 0:00:02]} 27. Bxd5 {[%emt 0:00:10]} Ra7 {[%emt 0:00:06]} 28. Rc7 {[%emt 0:00:16]} Be6 {[%emt 0:00:04]} 29. Bxe6 {[%emt 0:01:31]} fxe6 {[%emt 0:00:03]} 30. Kg2 {[%emt 0:00:01]} h5 {[%emt 0:00:34]} 31. h4 {[%emt 0:00:03]} e5 {[%emt 0:00:12]} 32. Rd7 {[%emt 0:00:16]} Kf8 {[%emt 0:01:57]} 33. Rc7 {[%emt 0:00:17]} 1/2-1/2

[Event "12th National Schools-ch 2024"]
[Site "Gyan Bhawan Patna"]
[Date "2024.02.10"]
[Round "9.1"]
[White "Sharvaanica A S"]
[Black "Divi Bijesh"]
[Result "1/2-1/2"]
[ECO "E05"]
[WhiteElo "1407"]
[BlackElo "1296"]
[Annotator "NA RC"]
[PlyCount "54"]
[EventDate "2024.02.05"]
[EventCountry "IND"]
[SourceTitle "playchess.com"]
[Source "ChessBase"]
[SourceQuality "1"]
[TimeControl "5400+30"]

1. d4 {[%emt 0:00:11]} d5 {[%emt 0:00:13]} 2. c4 {[%emt 0:00:24]} e6 {[%emt 0:00:27]} 3. Nf3 {[%emt 0:00:32]} Nf6 {[%emt 0:00:12]} 4. g3 {[%emt 0:00:45]} Be7 {[%emt 0:00:10]} 5. Bg2 {[%emt 0:00:51]} O-O {[%emt 0:00:10]} 6. O-O {[%emt 0:00:37]} dxc4 {[%emt 0:00:08]} 7. Qa4 {[%emt 0:00:23]} a6 {[%emt 0:00:07]} 8. Qxc4 {[%emt 0:00:29]} b5 {[%emt 0:00:29]} 9. Qc2 {[%emt 0:00:10]} Bb7 {[%emt 0:00:13]} 10. Bd2 {[%emt 0:00:27]} Be4 {[%emt 0:00:11]} 11. Qc1 {[%emt 0:00:22]} c6 {[%emt 0:00:11]} 12. Be3 {[%emt 0:00:25]} Nbd7 {[%emt 0:00:12]} 13. Rd1 {[%emt 0:00:46]} Rc8 {[%emt 0:00:35]} 14. Nc3 {[%emt 0:01:09]} Bg6 {[%emt 0:00:10]} 15. Ne5 {[%emt 0:01:31]} Nxe5 {[%emt 0:01:52]} 16. dxe5 {[%emt 0:00:29]} Nd5 {[%emt 0:00:13]} 17. Ne4 {[%emt 0:01:32]} Bxe4 {[%emt 0:08:06]} 18. Bxe4 {[%emt 0:01:04]} Qc7 {[%emt 0:02:30]} 19. f4 {[%emt 0:10:27]} Nxe3 {[%emt 0:00:51]} 20. Qxe3 {[%emt 0:00:16]} c5 {[%emt 0:00:09]} 21. Qf3 {[%emt 0:02:32]} c4 {[%emt 0:01:13]} 22. Kg2 {[%emt 0:01:39]} Rcd8 {[%emt 0:01:44]} 23. Bb7 {[%emt 0:05:56]} Qb6 {[%emt 0:00:34]} 24. Qc6 {[%emt 0:02:20]} Qe3 {[%emt 0:01:35]} 25. Qf3 {[%emt 0:00:47]} Qb6 {[%emt 0:01:48]} 26. Qc6 {[%emt 0:00:26]} Qe3 {[%emt 0:01:30]} 27. Qf3 {[%emt 0:00:34]} Qb6 {[%emt 0:00:35]} 1/2-1/2

[Event "12th National Schools-ch 2024"]
[Site "Gyan Bhawan Patna"]
[Date "2024.02.10"]
[Round "9.2"]
[White "Patel, Dhyaan"]
[Black "Advik Amit Agrawal"]
[Result "0-1"]
[ECO "E49"]
[WhiteElo "1172"]
[BlackElo "1490"]
[Annotator "NA RC"]
[PlyCount "60"]
[EventDate "2024.02.05"]
[EventCountry "IND"]
[SourceTitle "playchess.com"]
[Source "ChessBase"]
[SourceQuality "1"]
[TimeControl "5400+30"]

1. d4 {[%emt 0:00:03]} e6 {[%emt 0:00:58]} 2. c4 {[%emt 0:00:10]} Nf6 {[%emt 0:00:21]} 3. Nc3 {[%emt 0:00:09]} Bb4 {[%emt 0:00:17]} 4. e3 {[%emt 0:00:09]} O-O {[%emt 0:00:12]} 5. Bd3 {[%emt 0:00:08]} d5 {[%emt 0:00:13]} 6. Nge2 {[%emt 0:00:16]} dxc4 {[%emt 0:00:54]} 7. Bxc4 {[%emt 0:00:08]} c5 {[%emt 0:00:11]} 8. a3 {[%emt 0:00:14]} Bxc3+ {[%emt 0:00:44]} 9. bxc3 {[%emt 0:00:11]} Nc6 {[%emt 0:00:16]} 10. O-O {[%emt 0:00:15]} e5 {[%emt 0:00:06]} 11. Bb2 {[%emt 0:01:12]} Bf5 {[%emt 0:00:28]} 12. f3 {[%emt 0:02:17]} Qb6 {[%emt 0:01:10]} 13. Qd2 {[%emt 0:02:46]} Rfd8 {[%emt 0:06:45]} 14. Rfd1 {[%emt 0:04:16]} cxd4 {[%emt 0:05:49]} 15. cxd4 {[%emt 0:00:39]} Na5 {[%emt 0:00:10]} 16. Ba2 {[%emt 0:01:00]} Rac8 {[%emt 0:00:30]} 17. Rac1 {[%emt 0:01:04]} Ne8 {[%emt 0:15:37]} 18. Kh1 {[%emt 0:03:57]} Nb3 {[%emt 0:00:43]} 19. Bxb3 {[%emt 0:00:35]} Qxb3 {[%emt 0:00:11]} 20. e4 {[%emt 0:01:17]} Be6 {[%emt 0:01:04]} 21. d5 {[%emt 0:00:25]} f6 {[%emt 0:00:52]} 22. Rxc8 {[%emt 0:00:53]} Bxc8 {[%emt 0:00:17]} 23. Rc1 {[%emt 0:00:52]} Bd7 {[%emt 0:00:52]} 24. Rc3 {[%emt 0:01:44]} Qb6 {[%emt 0:00:41]} 25. Nc1 {[%emt 0:03:16]} Nd6 {[%emt 0:00:52]} 26. Nd3 {[%emt 0:01:12]} Bb5 {[%emt 0:01:40]} 27. Rb3 {[%emt 0:02:20]} Nc4 {[%emt 0:01:53]} 28. Qb4 {[%emt 0:02:35]} Nxb2 {[%emt 0:00:22]} 29. Nxb2 {[%emt 0:02:33]} Qf2 {[%emt 0:00:08]} 30. h3 {[%emt 0:01:11]} Bf1 {[%emt 1:01:14]} 0-1

[Event "12th National Schools-ch 2024"]
[Site "Gyan Bhawan Patna"]
[Date "2024.02.10"]
[Round "9.3"]
[White "Pratitee Bordoloi"]
[Black "Vidhi Angelina"]
[Result "1-0"]
[ECO "C94"]
[WhiteElo "1408"]
[BlackElo "1224"]
[Annotator "NA RC"]
[PlyCount "105"]
[EventDate "2024.02.05"]
[EventCountry "IND"]
[SourceTitle "playchess.com"]
[Source "ChessBase"]
[SourceQuality "1"]
[TimeControl "5400+30"]

1. e4 {[%emt 0:00:02]} e5 {[%emt 0:01:03]} 2. Nf3 {[%emt 0:00:19]} Nc6 {[%emt 0:00:09]} 3. Bb5 {[%emt 0:00:11]} a6 {[%emt 0:00:24]} 4. Ba4 {[%emt 0:00:10]} Nf6 {[%emt 0:00:08]} 5. O-O {[%emt 0:00:20]} Be7 {[%emt 0:01:46]} 6. Re1 {[%emt 0:00:15]} b5 {[%emt 0:00:20]} 7. Bb3 {[%emt 0:00:08]} d6 {[%emt 0:00:08]} 8. c3 {[%emt 0:00:15]} Nb8 {[%emt 0:00:36]} 9. h3 {[%emt 0:01:20]} Bb7 {[%emt 0:00:33]} 10. d3 {[%emt 0:01:29]} Nbd7 {[%emt 0:00:12]} 11. Nbd2 {[%emt 0:00:20]} O-O {[%emt 0:04:00]} 12. Nf1 {[%emt 0:00:33]} c5 {[%emt 0:10:19]} 13. Ng3 {[%emt 0:00:38]} g6 {[%emt 0:00:28]} 14. d4 {[%emt 0:02:59]} c4 {[%emt 0:04:21]} 15. Bc2 {[%emt 0:00:15]} Qc7 {[%emt 0:00:39]} 16. Bh6 {[%emt 0:02:27]} Rfd8 {[%emt 0:01:35]} 17. d5 {[%emt 0:02:20]} Ne8 {[%emt 0:06:41]} 18. Qd2 {[%emt 0:04:33]} Ng7 {[%emt 0:01:07]} 19. Nh2 {[%emt 0:16:32]} Nf6 {[%emt 0:04:12]} 20. Bd1 {[%emt 0:03:27]} Bc8 {[%emt 0:04:50]} 21. a4 {[%emt 0:04:20]} Bd7 {[%emt 0:04:40]} 22. a5 {[%emt 0:02:07]} Nfe8 {[%emt 0:01:51]} 23. Be3 {[%emt 0:04:15]} Rdb8 {[%emt 0:05:37]} 24. Ng4 {[%emt 0:09:07]} f5 {[%emt 0:08:35]} 25. Nh6+ {[%emt 0:01:47]} Kh8 {[%emt 0:01:35]} 26. exf5 {[%emt 0:04:40]} gxf5 {[%emt 0:00:34]} 27. Bc2 {[%emt 0:04:34]} Qc8 {[%emt 0:11:49]} 28. Bg5 {[%emt 0:03:22]} Nf6 {[%emt 0:03:53]} 29. Nf7+ {[%emt 0:02:43]} Kg8 {[%emt 0:00:10]} 30. Nxd6 {[%emt 0:00:54]} Bxd6 {[%emt 0:02:39]} 31. Bxf6 {[%emt 0:00:09]} Qf8 {[%emt 0:06:14]} 32. Qg5 {[%emt 0:02:01]} Be8 {[%emt 0:00:41]} 33. Bxg7 {[%emt 0:00:32]} Qxg7 {[%emt 0:05:08]} 34. Qxg7+ {[%emt 0:00:13]} Kxg7 {[%emt 0:00:11]} 35. Nxf5+ {[%emt 0:00:06]} Kg8 {[%emt 0:00:10]} 36. Nxd6 {[%emt 0:00:07]} Bg6 {[%emt 0:00:08]} 37. Bxg6 {[%emt 0:00:25]} hxg6 {[%emt 0:00:04]} 38. Rxe5 {[%emt 0:00:12]} Rd8 {[%emt 0:00:06]} 39. Re6 {[%emt 0:00:29]} Kg7 {[%emt 0:00:07]} 40. Rae1 {[%emt 0:00:16]} Rd7 {[%emt 0:00:07]} 41. Re7+ {[%emt 0:00:13]} Rxe7 {[%emt 0:00:05]} 42. Rxe7+ {[%emt 0:00:07]} Kf6 {[%emt 0:00:04]} 43. Re6+ {[%emt 0:00:15]} Kg7 {[%emt 0:00:04]} 44. Ne4 {[%emt 0:00:20]} Rd8 {[%emt 0:00:09]} 45. Rd6 {[%emt 0:00:29]} Re8 {[%emt 0:00:09]} 46. f3 {[%emt 0:00:08]} Re5 {[%emt 0:00:10]} 47. Kf2 {[%emt 0:00:15]} Kf7 {[%emt 0:00:07]} 48. Ke3 {[%emt 0:00:16]} Ke7 {[%emt 0:00:06]} 49. Re6+ {[%emt 0:00:08]} Rxe6 {[%emt 0:00:06]} 50. dxe6 {[%emt 0:00:05]} Kxe6 {[%emt 0:00:07]} 51. Nc5+ {[%emt 0:00:06]} Kd5 {[%emt 0:00:08]} 52. Nxa6 {[%emt 0:00:07]} Kc6 {[%emt 0:00:13]} 53. Nb4+ {[%emt 0:00:07]} 1-0

[Event "12th National Schools-ch 2024"]
[Site "Gyan Bhawan Patna"]
[Date "2024.02.10"]
[Round "9.4"]
[White "Rishen Jilowa"]
[Black "Vedant Yogesh Kale"]
[Result "1-0"]
[ECO "E60"]
[WhiteElo "1338"]
[BlackElo "1218"]
[Annotator "NA RC"]
[PlyCount "89"]
[EventDate "2024.02.05"]
[EventCountry "IND"]
[SourceTitle "playchess.com"]
[Source "ChessBase"]
[SourceQuality "1"]
[TimeControl "5400+30"]

1. c4 {[%emt 0:00:32]} Nf6 {[%emt 0:00:08]} 2. g3 {[%emt 0:00:27]} g6 {[%emt 0:00:08]} 3. b3 {[%emt 0:00:14]} Bg7 {[%emt 0:00:06]} 4. Bb2 {[%emt 0:00:06]} O-O {[%emt 0:00:36]} 5. Bg2 {[%emt 0:00:10]} d6 {[%emt 0:00:51]} 6. d4 {[%emt 0:01:05]} c6 {[%emt 0:03:21]} 7. Nf3 {[%emt 0:00:50]} Qc7 {[%emt 0:05:21]} 8. O-O {[%emt 0:00:49]} Nbd7 {[%emt 0:00:10]} 9. Nc3 {[%emt 0:02:07]} Nb6 {[%emt 0:10:19]} 10. e4 {[%emt 0:02:12]} c5 {[%emt 0:03:33]} 11. Nd5 {[%emt 0:04:48]} Nbxd5 {[%emt 0:00:25]} 12. exd5 {[%emt 0:00:12]} Bg4 {[%emt 0:02:57]} 13. h3 {[%emt 0:03:09]} Bxf3 {[%emt 0:00:33]} 14. Bxf3 {[%emt 0:00:08]} Nd7 {[%emt 0:00:08]} 15. Re1 {[%emt 0:01:20]} Rfe8 {[%emt 0:00:12]} 16. Qd2 {[%emt 0:00:28]} cxd4 {[%emt 0:01:29]} 17. Bxd4 {[%emt 0:00:10]} Bxd4 {[%emt 0:03:58]} 18. Qxd4 {[%emt 0:00:08]} Qc5 {[%emt 0:01:52]} 19. Qxc5 {[%emt 0:01:34]} Nxc5 {[%emt 0:00:05]} 20. Re3 {[%emt 0:00:07]} Rac8 {[%emt 0:01:09]} 21. Rae1 {[%emt 0:00:15]} Kf8 {[%emt 0:00:06]} 22. Bd1 {[%emt 0:01:26]} Rc7 {[%emt 0:00:47]} 23. f4 {[%emt 0:00:22]} Rec8 {[%emt 0:04:50]} 24. g4 {[%emt 0:00:55]} Na6 {[%emt 0:01:10]} 25. a3 {[%emt 0:02:11]} Re8 {[%emt 0:08:25]} 26. Kf2 {[%emt 0:01:49]} Rec8 {[%emt 0:04:01]} 27. h4 {[%emt 0:00:39]} Re8 {[%emt 0:02:49]} 28. h5 {[%emt 0:00:08]} Rec8 {[%emt 0:03:33]} 29. hxg6 {[%emt 0:00:14]} hxg6 {[%emt 0:00:24]} 30. f5 {[%emt 0:00:50]} gxf5 {[%emt 0:13:45]} 31. gxf5 {[%emt 0:00:07]} Kg7 {[%emt 0:00:50]} 32. Rxe7 {[%emt 0:06:21]} Rxe7 {[%emt 0:00:05]} 33. Rxe7 {[%emt 0:00:06]} Rc7 {[%emt 0:00:02]} 34. Re8 {[%emt 0:02:24]} Nc5 {[%emt 0:00:25]} 35. Ke3 {[%emt 0:00:46]} Kf6 {[%emt 0:01:02]} 36. Bc2 {[%emt 0:00:55]} Re7+ {[%emt 0:00:12]} 37. Rxe7 {[%emt 0:00:02]} Kxe7 {[%emt 0:00:04]} 38. b4 {[%emt 0:01:36]} Nd7 {[%emt 0:00:10]} 39. Kd4 {[%emt 0:00:05]} b6 {[%emt 0:00:03]} 40. Ba4 {[%emt 0:01:44]} Nf6 {[%emt 0:02:20]} 41. c5 {[%emt 0:00:35]} bxc5+ {[%emt 0:28:36]} 42. bxc5 {[%emt 0:00:06]} dxc5+ {[%emt 0:00:00]} 43. Kxc5 {[%emt 0:00:05]} Ne4+ {[%emt 0:00:00]} 44. Kc6 {[%emt 0:00:14]} Nd6 {[%emt 0:00:00]} 45. f6+ {[%emt 0:00:13]} 1-0

[Event "12th National Schools-ch 2024"]
[Site "Gyan Bhawan Patna"]
[Date "2024.02.10"]
[Round "9.5"]
[White "Tripurambika V"]
[Black "Nivedita V C"]
[Result "1-0"]
[ECO "D00"]
[WhiteElo "1396"]
[BlackElo "1609"]
[Annotator "NA RC"]
[PlyCount "107"]
[EventDate "2024.02.05"]
[EventCountry "IND"]
[SourceTitle "playchess.com"]
[Source "ChessBase"]
[SourceQuality "1"]
[TimeControl "5400+30"]

1. d4 {[%emt 0:00:15]} Nf6 {[%emt 0:00:03]} 2. Nc3 {[%emt 0:00:21]} d5 {[%emt 0:00:50]} 3. Bf4 {[%emt 0:01:03]} e6 {[%emt 0:01:39]} 4. e3 {[%emt 0:00:51]} Bd6 {[%emt 0:02:49]} 5. Nf3 {[%emt 0:04:21]} O-O {[%emt 0:03:47]} 6. Bd3 {[%emt 0:03:06]} c5 {[%emt 0:01:51]} 7. Bxd6 {[%emt 0:05:01]} Qxd6 {[%emt 0:00:06]} 8. O-O {[%emt 0:00:33]} c4 {[%emt 0:11:50]} 9. Be2 {[%emt 0:06:07]} Nc6 {[%emt 0:05:35]} 10. b3 {[%emt 0:09:59]} Qb4 {[%emt 0:10:27]} 11. Nb1 {[%emt 0:06:15]} cxb3 {[%emt 0:03:22]} 12. axb3 {[%emt 0:00:35]} Ne4 {[%emt 0:00:36]} 13. Qd3 {[%emt 0:04:49]} Qd6 {[%emt 0:04:19]} 14. c4 {[%emt 0:04:31]} Nb4 {[%emt 0:03:37]} 15. Qd1 {[%emt 0:00:44]} dxc4 {[%emt 0:04:46]} 16. bxc4 {[%emt 0:01:05]} b6 {[%emt 0:02:16]} 17. Qb3 {[%emt 0:01:47]} Bb7 {[%emt 0:04:14]} 18. Nc3 {[%emt 0:01:42]} a5 {[%emt 0:01:00]} 19. Rfc1 {[%emt 0:05:38]} Qe7 {[%emt 0:09:40]} 20. Na4 {[%emt 0:02:54]} Qd6 {[%emt 0:08:34]} 21. Nc3 {[%emt 0:02:59]} h6 {[%emt 0:01:32]} 22. Nxe4 {[%emt 0:01:44]} Bxe4 {[%emt 0:00:03]} 23. Nd2 {[%emt 0:00:41]} Bb7 {[%emt 0:08:05]} 24. Bf3 {[%emt 0:00:19]} Bxf3 {[%emt 0:00:25]} 25. Nxf3 {[%emt 0:00:06]} Rfc8 {[%emt 0:00:08]} 26. h3 {[%emt 0:01:06]} Rc7 {[%emt 0:05:38]} 27. Ne5 {[%emt 0:02:18]} Rac8 {[%emt 0:00:48]} 28. Nf3 {[%emt 0:04:01]} b5 {[%emt 0:02:08]} 29. c5 {[%emt 0:00:19]} Qd5 {[%emt 0:02:57]} 30. Qxd5 {[%emt 0:00:10]} Nxd5 {[%emt 0:00:04]} 31. Rxa5 {[%emt 0:00:10]} b4 {[%emt 0:00:05]} 32. Rb1 {[%emt 0:01:17]} Rb7 {[%emt 0:00:43]} 33. Rb3 {[%emt 0:00:52]} Nc3 {[%emt 0:00:07]} 34. Ne5 {[%emt 0:00:36]} Ne4 {[%emt 0:00:59]} 35. Ra4 {[%emt 0:01:01]} Rcb8 {[%emt 0:00:56]} 36. Nd3 {[%emt 0:02:57]} Nc3 {[%emt 0:01:23]} 37. Raxb4 {[%emt 0:00:53]} Rxb4 {[%emt 0:00:06]} 38. Rxb4 {[%emt 0:00:07]} Ra8 {[%emt 0:00:17]} 39. Rc4 {[%emt 0:00:40]} Ne4 {[%emt 0:00:23]} 40. Rc2 {[%emt 0:02:23]} Kf8 {[%emt 0:00:58]} 41. Kf1 {[%emt 0:00:53]} Ke7 {[%emt 0:00:44]} 42. Ke2 {[%emt 0:00:49]} f6 {[%emt 0:00:33]} 43. Rb2 {[%emt 0:02:20]} Ra7 {[%emt 0:00:12]} 44. Nb4 {[%emt 0:01:52]} Kd7 {[%emt 0:00:41]} 45. Kd3 {[%emt 0:00:27]} f5 {[%emt 0:00:12]} 46. Kc4 {[%emt 0:01:05]} Kc7 {[%emt 0:00:57]} 47. d5 {[%emt 0:00:41]} Ra4 {[%emt 0:01:03]} 48. dxe6 {[%emt 0:01:36]} Ra5 {[%emt 0:00:08]} 49. Nd5+ {[%emt 0:00:16]} Kc8 {[%emt 0:00:21]} 50. e7 {[%emt 0:01:05]} Rxc5+ {[%emt 0:00:38]} 51. Kd4 {[%emt 0:00:13]} Rxd5+ {[%emt 0:00:12]} 52. Kxd5 {[%emt 0:00:08]} Kd7 {[%emt 0:00:02]} 53. Rb7+ {[%emt 0:00:30]} Ke8 {[%emt 0:00:04]} 54. f3 {[%emt 0:00:31]} 1-0

[Event "12th National Schools-ch 2024"]
[Site "Gyan Bhawan Patna"]
[Date "2024.02.10"]
[Round "9.6"]
[White "Amartya Kumar"]
[Black "Reyan"]
[Result "0-1"]
[ECO "B22"]
[WhiteElo "1468"]
[BlackElo "1903"]
[Annotator "TA"]
[PlyCount "114"]
[EventDate "2024.02.05"]
[EventCountry "IND"]
[SourceTitle "playchess.com"]
[Source "ChessBase"]
[SourceQuality "1"]
[TimeControl "5400+30"]

{[%evp 21,114,-36,-23,-29,-30,-28,-42,-34,-38,-37,-39,-73,-71,-75,-76,-70,-80,-77,-79,-70,-62,-62,-79,-80,-64,-70,-64,-87,-32,-32,-41,-119,-70,-77,-3,-88,-85,-85,-75,-70,-72,-76,-73,-75,-63,-132,-139,-145,-144,-244,-187,-244,-237,-388,-385,-374,-340,-333,-341,-333,-340,-362,-362,-349,-341,-362,-354,-463,-493,-500,-409,-1060,-1015,-5134,-5127,-4158,-4866,-5712,-5031,-9858,-8833,-6436,-6949,-5904,-4964,-29979,-29980,-29983,-29984,-29984,-29985,-29984,-29985,-29994,-29995]} 1. e4 {[%emt 0:00:17][%cal Be2e4,Be4e5][%mdl 32]} c5 {[%emt 0:00:06]} 2. d4 {[%emt 0:00:04]} cxd4 {[%emt 0:00:04]} 3. c3 {[%emt 0:00:07]} Nf6 {[%emt 0:00:04]} 4. e5 {[%emt 0:00:05]} Nd5 {[%emt 0:00:05]} 5. Nf3 {[%emt 0:00:07]} Nc6 {[%emt 0:00:10]} 6. cxd4 {[%emt 0:00:17]} d6 {[%emt 0:00:05]} 7. exd6 {[%emt 0:00:12]} Qxd6 {[%emt 0:00:02]} 8. Nc3 {[%emt 0:01:17]} Bg4 {[%emt 0:00:47]} 9. Be2 {[%emt 0:02:12]} e6 {[%emt 0:00:30]} 10. Be3 {[%emt 0:07:12]} Be7 {[%emt 0:01:15]} 11. O-O {[%emt 0:01:23]} O-O {[%emt 0:00:34]} 12. Rc1 {[%emt 0:06:28]} Rfd8 {[%emt 0:01:49]} 13. h3 {[%emt 0:03:05]} Bf5 {[%emt 0:06:27]} 14. Nxd5 {[%emt 0:00:47] Black is slightly better.} Qxd5 {[%emt 0:00:23]} 15. Bc4 {[%emt 0:00:18]} Qd6 {[%emt 0:02:02]} 16. a3 {[%emt 0:07:04]} Bf6 {[%emt 0:02:14]} 17. Qe2 {[%emt 0:07:14]} Nxd4 {[%emt 0:08:25] Black is more active.} 18. Bxd4 {[%emt 0:04:27]} Bxd4 {[%emt 0:00:07]} 19. Rfd1 {[%emt 0:01:55]} Qb6 {[%emt 0:00:31]} 20. Nxd4 {[%emt 0:01:07]} Rxd4 {[%emt 0:00:15]} 21. Rxd4 {[%emt 0:01:21]} Qxd4 {[%emt 0:00:02]} 22. Rd1 {[%emt 0:01:39]} Qe4 {[%emt 0:07:17]} 23. Rd7 {[%emt 0:04:26][%cal Oe2d2]} h6 {[%emt 0:07:26]} (23... Qxe2 {simplifies} 24. Bxe2 Be4 25. f3 Bc6) 24. b3 {[%emt 0:06:30]} a6 {[%emt 0:05:13]} (24... Qc6 $17 25. Qd2 Be4) 25. Qxe4 $15 {[%emt 0:02:05]} Bxe4 {[%emt 0:00:02][%mdl 4096] Endgame. KRB-KRB} 26. a4 {[%emt 0:00:13]} (26. f3 $15 Bc6 27. Rc7) 26... Bc6 {[%emt 0:00:27]} (26... Rc8 $17 27. Rd4 Bc6) 27. Rc7 {[%emt 0:00:35]} g5 {[%emt 0:01:53]} ({Black should play} 27... a5 $17) 28. b4 {[%emt 0:03:52]} (28. a5 $11) 28... Bxa4 $17 {[%emt 0:03:22]} 29. Rxb7 {[%emt 0:00:08]} a5 {[%emt 0:00:01]} 30. b5 {[%emt 0:03:08]} Rc8 {[%emt 0:10:07] Inhibits b6.} 31. Be2 {[%emt 0:01:44]} Rc1+ {[%emt 0:00:02]} 32. Kh2 {[%emt 0:00:21]} Rb1 {[%emt 0:00:08]} 33. Bc4 {[%emt 0:05:26] Black continues to play with concentration.} ({White should try} 33. Bh5 $15) 33... Rb4 {[%emt 0:02:09]} 34. Be2 {[%emt 0:02:47]} Bb3 {[%emt 0:01:36]} 35. b6 {[%emt 0:01:53]} (35. Ra7 $17 {was worth a try.}) 35... Bd5 {[%emt 0:01:03]} 36. Ra7 {[%emt 0:01:54]} (36. Rb8+ $142 Kg7 37. Bf3) 36... Rxb6 $19 {[%emt 0:02:53] [#] Hoping for ...Rb2.} 37. Kg3 $2 {[%emt 0:03:32]} (37. Rxa5 Rb2 38. Bf1) 37... Rb3+ {[%emt 0:00:52]} 38. f3 {[%emt 0:00:32]} Ra3 {[%emt 0:00:21]} 39. Bb5 {[%emt 0:00:13]} Kg7 {[%emt 0:00:35]} 40. h4 {[%emt 0:01:46]} Ra2 {[%emt 0:02:31]} 41. hxg5 {[%emt 0:00:28]} hxg5 {[%emt 0:00:05]} 42. Be8 {[%emt 0:00:28]} e5 {[%emt 0:00:01]} 43. Kg4 {[%emt 0:02:13]} Kf6 {[%emt 0:03:57]} 44. Kg3 {[%emt 0:00:56]} Bb3 {[%emt 0:02:55]} 45. Ra6+ {[%emt 0:00:42]} Kg7 {[%emt 0:00:34]} 46. Kg4 {[%emt 0:00:31]} (46. Bd7 $142) 46... Rxg2+ {[%emt 0:00:11]} 47. Kf5 {[%emt 0:00:24]} Bc2+ {[%emt 0:00:08]} 48. Kxe5 {[%emt 0:00:04]} Re2+ {[%emt 0:00:05]} 49. Kd4 {[%emt 0:00:10]} Rxe8 {[%emt 0:00:03]} 50. Rxa5 {[%emt 0:00:05] KRB-KR} Kf6 {[%emt 0:00:32] [#] And now ...Bd1 would win.} 51. Ra2 {[%emt 0:00:15]} Bf5 {[%emt 0:00:08]} 52. Rg2 {[%emt 0:00:10]} Re1 {[%emt 0:00:09] White must now prevent ...Rd1+.} 53. Kc3 {[%emt 0:00:06]} Re3+ {[%emt 0:00:06] Black mates.} 54. Kd2 {[%emt 0:00:04]} Rxf3 {[%emt 0:00:05]} 55. Ke2 {[%emt 0:00:04]} g4 {[%emt 0:00:07]} 56. Rg1 {[%emt 0:00:03]} Ke5 {[%emt 0:00:05]} 57. Rb1 {[%emt 0:00:07]} Bxb1 {[%emt 0:00:06] Weighted Error Value: White=0.81/Black=0.21 (precise) .  Mistake:       	White=7     	Black=3      Inaccurate:     	White=3     	---        OK:         	White=11    	Black=14     Best:        	White=3     	Black=4} 0-1